[Event "FIDE Grand Swiss 2023"]
[Site "Villa Marina, Douglas, Isle of Man, Isle Of Man"]
[Date "2023.11.01"]
[Round "7.4"]
[White "Erigaisi, Arjun"]
[Black "Esipenko, Andrey"]
[Result "1/2-1/2"]
[TimeControl "40/90 + 30 + 30s/move"]
[WhiteFideId "35009192"]
[BlackFideId "24175439"]
[WhiteElo "2712"]
[BlackElo "2683"]

1. e4 {[%clk 01:40:53]} {[%emt 00:00:06]} e5 {[%clk 01:40:29]} {[%emt
00:00:32]} 2. Nf3 {[%clk 01:41:17]} {[%emt 00:00:06]} Nc6 {[%clk 01:40:53]}
{[%emt 00:00:06]} 3. Bb5 {[%clk 01:41:42]} {[%emt 00:00:05]} a6 {[%clk
01:41:17]} {[%emt 00:00:06]} 4. Ba4 {[%clk 01:42:09]} {[%emt 00:00:04]} Nf6
{[%clk 01:41:42]} {[%emt 00:00:05]} 5. O-O {[%clk 01:42:32]} {[%emt 00:00:06]}
Be7 {[%clk 01:42:03]} {[%emt 00:00:09]} 6. Re1 {[%clk 01:42:56]} {[%emt
00:00:06]} b5 {[%clk 01:42:29]} {[%emt 00:00:05]} 7. Bb3 {[%clk 01:43:23]}
{[%emt 00:00:03]} O-O {[%clk 01:42:52]} {[%emt 00:00:06]} 8. h3 {[%clk
01:43:49]} {[%emt 00:00:04]} Bb7 {[%clk 01:40:13]} {[%emt 00:03:10]} 9. d3
{[%clk 01:42:55]} {[%emt 00:01:24]} d5 {[%clk 01:39:50]} {[%emt 00:00:52]} 10.
exd5 {[%clk 01:43:18]} {[%emt 00:00:07]} Nxd5 {[%clk 01:40:14]} {[%emt
00:00:05]} 11. Nbd2 {[%clk 01:43:42]} {[%emt 00:00:07]} Qd7 {[%clk 01:38:50]}
{[%emt 00:01:55]} 12. a4 {[%clk 01:43:07]} {[%emt 00:01:05]} Rae8 {[%clk
01:38:58]} {[%emt 00:00:22]} 13. axb5 {[%clk 01:40:46]} {[%emt 00:02:51]} axb5
{[%clk 01:39:22]} {[%emt 00:00:05]} 14. Ne4 {[%clk 01:41:11]} {[%emt 00:00:04]}
Kh8 {[%clk 01:39:30]} {[%emt 00:00:23]} 15. Bd2 {[%clk 01:41:10]} {[%emt
00:00:32]} f6 {[%clk 01:23:39]} {[%emt 00:16:20]} 16. c3 {[%clk 01:39:08]}
{[%emt 00:02:32]} f5 {[%clk 01:10:43]} {[%emt 00:13:27]} 17. Neg5 {[%clk
01:37:31]} {[%emt 00:02:06]} Bf6 {[%clk 01:02:30]} {[%emt 00:08:43]} 18. c4
{[%clk 01:33:51]} {[%emt 00:04:11]} bxc4 {[%clk 00:55:57]} {[%emt 00:07:03]} 19.
dxc4 {[%clk 01:34:09]} {[%emt 00:00:11]} Nde7 {[%clk 00:29:19]} {[%emt
00:27:08]} 20. c5 {[%clk 00:49:56]} {[%emt 00:44:44]} e4 {[%clk 00:27:43]}
{[%emt 00:02:05]} 21. Be6 {[%clk 00:50:20]} {[%emt 00:00:07]} Qd8 {[%clk
00:25:55]} {[%emt 00:02:17]} 22. Nf7+ {[%clk 00:50:44]} {[%emt 00:00:06]} Rxf7
{[%clk 00:26:21]} {[%emt 00:00:04]} 23. Bxf7 {[%clk 00:51:09]} {[%emt
00:00:05]} Rf8 {[%clk 00:23:06]} {[%emt 00:03:44]} 24. Ng5 {[%clk 00:49:22]}
{[%emt 00:02:17]} e3 {[%clk 00:22:19]} {[%emt 00:01:18]} 25. Bxe3 {[%clk
00:44:22]} {[%emt 00:05:30]} Qxd1 {[%clk 00:22:29]} {[%emt 00:00:20]} 26. Raxd1
{[%clk 00:38:46]} {[%emt 00:06:06]} h6 {[%clk 00:22:51]} {[%emt 00:00:08]} 27.
Rd7 {[%clk 00:37:16]} {[%emt 00:02:00]} hxg5 {[%clk 00:19:44]} {[%emt
00:03:37]} 28. Rxc7 {[%clk 00:37:33]} {[%emt 00:00:12]} Ba8 {[%clk 00:13:55]}
{[%emt 00:06:20]} 29. Bc4 {[%clk 00:31:02]} {[%emt 00:07:01]} Rd8 {[%clk
00:13:14]} {[%emt 00:01:11]} 30. Be6 {[%clk 00:21:03]} {[%emt 00:10:29]} Kh7
{[%clk 00:08:59]} {[%emt 00:04:45]} 31. Rd7 {[%clk 00:20:31]} {[%emt 00:01:02]}
Rb8 {[%clk 00:09:10]} {[%emt 00:00:18]} 32. b3 {[%clk 00:20:06]} {[%emt
00:00:57]} Bb7 {[%clk 00:07:42]} {[%emt 00:01:57]} 33. Rd6 {[%clk 00:17:10]}
{[%emt 00:03:26]} f4 {[%clk 00:03:24]} {[%emt 00:04:48]} 34. Bd2 {[%clk
00:16:11]} {[%emt 00:01:28]} Be5 {[%clk 00:03:30]} {[%emt 00:00:24]} 35. Rd7
{[%clk 00:15:40]} {[%emt 00:01:02]} Bf6 {[%clk 00:03:54]} {[%emt 00:00:05]} 36.
b4 {[%clk 00:08:04]} {[%emt 00:08:07]} Ba6 {[%clk 00:03:29]} {[%emt 00:00:55]}
37. Rd6 {[%clk 00:08:01]} {[%emt 00:00:33]} Bb5 {[%clk 00:02:37]} {[%emt
00:01:22]} 38. Bd7 {[%clk 00:07:30]} {[%emt 00:01:01]} Ra8 {[%clk 00:00:39]}
{[%emt 00:02:29]} 39. h4 {[%clk 00:04:50]} {[%emt 00:03:09]} gxh4 {[%clk
00:00:34]} {[%emt 00:00:34]} 40. Bxf4 {[%clk 00:04:19]} {[%emt 00:01:01]} Ra2
{[%clk 00:00:36]} {[%emt 00:00:28]} 41. g4 {[%clk 00:38:16]} {[%emt 00:16:33]}
hxg3 {[%clk 00:34:55]} {[%emt 00:16:12]} 42. Bxg3 {[%clk 00:38:08]} {[%emt
00:00:38]} Rb2 {[%clk 00:26:11]} {[%emt 00:09:13]} 43. Kg2 {[%clk 00:35:07]}
{[%emt 00:03:32]} Bc4 {[%clk 00:18:32]} {[%emt 00:08:08]} 44. Kh2 {[%clk
00:25:50]} {[%emt 00:09:47]} Bb5 {[%clk 00:18:33]} {[%emt 00:00:29]} 45. Re4
{[%clk 00:16:02]} {[%emt 00:10:19]} Ba4 {[%clk 00:16:26]} {[%emt 00:02:36]} 46.
Kg2 {[%clk 00:12:26]} {[%emt 00:04:06]} Kg8 {[%clk 00:11:17]} {[%emt 00:05:40]}
47. Bh4 {[%clk 00:09:23]} {[%emt 00:03:33]} Bc2 {[%clk 00:05:02]} {[%emt
00:06:44]} 48. Rg4 {[%clk 00:08:18]} {[%emt 00:01:35]} Bxh4 {[%clk 00:04:18]}
{[%emt 00:01:14]} 49. Rxh4 {[%clk 00:08:09]} {[%emt 00:00:39]} g5 {[%clk
00:04:20]} {[%emt 00:00:28]} 50. Rg4 {[%clk 00:06:33]} {[%emt 00:02:07]} Rxb4
{[%clk 00:04:28]} {[%emt 00:00:21]} 51. Rxg5+ {[%clk 00:06:59]} {[%emt
00:00:04]} Kf7 {[%clk 00:04:48]} {[%emt 00:00:10]} 52. f3 {[%clk 00:06:29]}
{[%emt 00:01:01]} Na5 {[%clk 00:01:58]} {[%emt 00:03:20]} 53. c6 {[%clk
00:04:18]} {[%emt 00:02:41]} Nc4 {[%clk 00:02:19]} {[%emt 00:00:08]} 54. Rh6
{[%clk 00:04:36]} {[%emt 00:00:12]} Bg6 {[%clk 00:02:05]} {[%emt 00:00:45]} 55.
Rh8 {[%clk 00:03:37]} {[%emt 00:01:28]} Rb2+ {[%clk 00:02:11]} {[%emt
00:00:24]} 56. Kg3 {[%clk 00:03:40]} {[%emt 00:00:28]} Nd6 {[%clk 00:01:40]}
{[%emt 00:01:01]} 57. Rc5 {[%clk 00:03:31]} {[%emt 00:00:38]} Be4 {[%clk
00:00:38]} {[%emt 00:01:32]} 58. Rc3 {[%clk 00:02:20]} {[%emt 00:01:41]} Bf5
{[%clk 00:00:45]} {[%emt 00:00:23]} 59. Rd8 {[%clk 00:01:35]} {[%emt 00:01:15]}
Bxd7 {[%clk 00:01:01]} {[%emt 00:00:14]} 60. Rxd7 {[%clk 00:01:27]} {[%emt
00:00:38]} Ndc8 {[%clk 00:01:14]} {[%emt 00:00:17]} 61. c7 {[%clk 00:00:34]}
{[%emt 00:01:24]} Ke6 {[%clk 00:14:44]} {[%emt 00:01:59]} 62. Rd8 {[%clk
00:15:56]} {[%emt 00:00:08]} Rb4 {[%clk 00:14:21]} {[%emt 00:00:53]} 63. f4
{[%clk 00:14:43]} {[%emt 00:01:44]} Rb1 {[%clk 00:14:07]} {[%emt 00:00:42]} 64.
Rc5 {[%clk 00:13:30]} {[%emt 00:01:44]} Rg1+ {[%clk 00:13:23]} {[%emt
00:01:14]} 65. Kf2 {[%clk 00:12:58]} {[%emt 00:01:02]} Ra1 {[%clk 00:12:37]}
{[%emt 00:01:16]} 66. Ke3 {[%clk 00:12:40]} {[%emt 00:00:48]} Ra3+ {[%clk
00:12:32]} {[%emt 00:00:34]} 67. Ke2 {[%clk 00:11:16]} {[%emt 00:01:55]} Kf7
{[%clk 00:12:15]} {[%emt 00:00:47]} 68. Kd2 {[%clk 00:10:58]} {[%emt 00:00:49]}
Ra4 {[%clk 00:10:42]} {[%emt 00:02:02]} 69. Ke3 {[%clk 00:11:14]} {[%emt
00:00:14]} Rb4 {[%clk 00:10:53]} {[%emt 00:00:18]} 70. Kf3 {[%clk 00:10:25]}
{[%emt 00:01:20]} Rb1 {[%clk 00:10:52]} {[%emt 00:00:31]} 71. Rd4 {[%clk
00:06:55]} {[%emt 00:04:01]} Kf6 {[%clk 00:10:56]} {[%emt 00:00:25]} 72. Rd8
{[%clk 00:06:51]} {[%emt 00:00:34]} Kf7 {[%clk 00:11:19]} {[%emt 00:00:07]} 73.
Ke4 {[%clk 00:06:50]} {[%emt 00:00:31]} Kf6 {[%clk 00:10:53]} {[%emt 00:00:55]}
74. Rh8 {[%clk 00:06:18]} {[%emt 00:01:03]} Rb4+ {[%clk 00:10:43]} {[%emt
00:00:40]} 75. Ke3 {[%clk 00:06:37]} {[%emt 00:00:11]} Kg7 {[%clk 00:10:40]}
{[%emt 00:00:32]} 76. Rh1 {[%clk 00:06:22]} {[%emt 00:00:46]} Kf7 {[%clk
00:09:43]} {[%emt 00:01:27]} 77. Kf3 {[%clk 00:06:29]} {[%emt 00:00:23]} Rb7
{[%clk 00:04:15]} {[%emt 00:05:58]} 78. Kg4 {[%clk 00:05:47]} {[%emt 00:01:12]}
Kg7 {[%clk 00:04:16]} {[%emt 00:00:29]} 79. Rd1 {[%clk 00:04:00]} {[%emt
00:02:18]} Kf7 {[%clk 00:04:28]} {[%emt 00:00:17]} 80. Rc2 {[%clk 00:03:58]}
{[%emt 00:00:33]} Ra7 {[%clk 00:04:36]} {[%emt 00:00:22]} 81. Rd7 {[%clk
00:04:05]} {[%emt 00:00:23]} Ra1 {[%clk 00:04:08]} {[%emt 00:00:57]} 82. Rd8
{[%clk 00:03:47]} {[%emt 00:00:49]} Kg7 {[%clk 00:03:58]} {[%emt 00:00:39]} 83.
Rcd2 {[%clk 00:03:46]} {[%emt 00:00:31]} Rg1+ {[%clk 00:03:00]} {[%emt
00:01:28]} 84. Kf3 {[%clk 00:04:11]} {[%emt 00:00:06]} Rc1 {[%clk 00:03:07]}
{[%emt 00:00:22]} 85. R8d7 {[%clk 00:03:31]} {[%emt 00:01:11]} Kf6 {[%clk
00:03:16]} {[%emt 00:00:20]} 86. Re2 {[%clk 00:03:49]} {[%emt 00:00:13]} Kf7
{[%clk 00:02:23]} {[%emt 00:01:20]} 87. f5 {[%clk 00:02:58]} {[%emt 00:01:22]}
Kf6 {[%clk 00:02:13]} {[%emt 00:00:40]} 88. Re6+ {[%clk 00:02:57]} {[%emt
00:00:32]} Kxf5 {[%clk 00:02:26]} {[%emt 00:00:17]} 89. Rexe7 {[%clk 00:03:22]}
{[%emt 00:00:05]} Nxe7 {[%clk 00:02:50]} {[%emt 00:00:06]} 90. Rxe7 {[%clk
00:03:48]} {[%emt 00:00:04]} Kf6 {[%clk 00:03:08]} {[%emt 00:00:12]} 1/2-1/2

[Event "FIDE Grand Swiss 2023"]
[Site "Villa Marina, Douglas, Isle of Man, Isle Of Man"]
[Date "2023.11.01"]
[Round "7.26"]
[White "Harikrishna, Pentala"]
[Black "Murzin, Volodar"]
[Result "1/2-1/2"]
[TimeControl "40/90 + 30 + 30s/move"]
[WhiteFideId "5007003"]
[BlackFideId "44155573"]
[WhiteElo "2716"]
[BlackElo "2633"]

1. e4 {[%clk 01:40:54]} {[%emt 00:00:05]} e5 {[%clk 01:40:53]} {[%emt
00:00:07]} 2. Nf3 {[%clk 01:41:13]} {[%emt 00:00:11]} Nc6 {[%clk 01:41:16]}
{[%emt 00:00:08]} 3. Bb5 {[%clk 01:41:06]} {[%emt 00:00:37]} a6 {[%clk
01:41:40]} {[%emt 00:00:07]} 4. Ba4 {[%clk 01:41:31]} {[%emt 00:00:04]} Nf6
{[%clk 01:42:02]} {[%emt 00:00:07]} 5. Nc3 {[%clk 01:40:50]} {[%emt 00:01:12]}
Bd6 {[%clk 01:21:15]} {[%emt 00:21:17]} 6. O-O {[%clk 01:31:12]} {[%emt
00:10:07]} Nd4 {[%clk 01:15:36]} {[%emt 00:06:10]} 7. d3 {[%clk 01:24:16]}
{[%emt 00:07:26]} Nxf3+ {[%clk 01:09:24]} {[%emt 00:06:42]} 8. Qxf3 {[%clk
01:24:30]} {[%emt 00:00:15]} O-O {[%clk 01:09:48]} {[%emt 00:00:07]} 9. g4
{[%clk 01:15:10]} {[%emt 00:09:49]} Kh8 {[%clk 00:55:15]} {[%emt 00:15:03]} 10.
Bb3 {[%clk 01:11:58]} {[%emt 00:03:42]} Bc5 {[%clk 00:53:30]} {[%emt 00:02:15]}
11. g5 {[%clk 00:56:51]} {[%emt 00:15:37]} Ng8 {[%clk 00:53:06]} {[%emt
00:00:54]} 12. Qg3 {[%clk 00:55:51]} {[%emt 00:01:30]} d6 {[%clk 00:50:08]}
{[%emt 00:03:29]} 13. Be3 {[%clk 00:55:39]} {[%emt 00:00:42]} f5 {[%clk
00:45:06]} {[%emt 00:05:31]} 14. f4 {[%clk 00:51:45]} {[%emt 00:04:24]} exf4
{[%clk 00:36:22]} {[%emt 00:09:16]} 15. Rxf4 {[%clk 00:50:44]} Bxe3+ {[%clk
00:35:41]} {[%emt 00:02:41]} 16. Qxe3 {[%clk 00:51:05]} {[%emt 00:00:08]} Qxg5+
{[%clk 00:36:05]} {[%emt 00:00:07]} 17. Qg3 {[%clk 00:40:36]} {[%emt 00:10:58]}
Qxg3+ {[%clk 00:34:34]} {[%emt 00:02:02]} 18. hxg3 {[%clk 00:41:00]} {[%emt
00:00:05]} Bd7 {[%clk 00:21:28]} {[%emt 00:13:37]} 19. Raf1 {[%clk 00:40:38]}
{[%emt 00:00:51]} Ne7 {[%clk 00:16:11]} {[%emt 00:05:48]} 20. exf5 {[%clk
00:28:33]} {[%emt 00:12:35]} Rxf5 {[%clk 00:15:46]} {[%emt 00:00:55]} 21. Re1
{[%clk 00:27:21]} {[%emt 00:01:41]} Ng6 {[%clk 00:13:43]} {[%emt 00:02:34]} 22.
Rxf5 {[%clk 00:25:41]} {[%emt 00:02:10]} Bxf5 {[%clk 00:14:11]} {[%emt
00:00:01]} 23. Bd5 {[%clk 00:18:58]} {[%emt 00:07:13]} c6 {[%clk 00:14:20]}
{[%emt 00:00:22]} 24. Be4 {[%clk 00:19:23]} {[%emt 00:00:04]} Ne7 {[%clk
00:11:47]} {[%emt 00:03:03]} 25. g4 {[%clk 00:19:45]} {[%emt 00:00:09]} Bxg4
{[%clk 00:10:52]} {[%emt 00:01:25]} 26. Bxh7 {[%clk 00:20:08]} {[%emt
00:00:06]} Nf5 {[%clk 00:11:15]} {[%emt 00:00:08]} 27. Bxf5 {[%clk 00:20:03]}
{[%emt 00:00:34]} Bxf5 {[%clk 00:11:43]} {[%emt 00:00:03]} 28. Re7 {[%clk
00:19:33]} {[%emt 00:01:00]} Rb8 {[%clk 00:11:43]} {[%emt 00:00:30]} 29. Rf7
{[%clk 00:17:05]} {[%emt 00:02:57]} Be6 {[%clk 00:10:37]} {[%emt 00:01:37]} 30.
Rc7 {[%clk 00:16:35]} {[%emt 00:00:58]} Kh7 {[%clk 00:09:36]} {[%emt 00:01:32]}
31. b3 {[%clk 00:14:49]} {[%emt 00:02:17]} Bf5 {[%clk 00:09:30]} {[%emt
00:00:36]} 32. Nd1 {[%clk 00:14:35]} {[%emt 00:00:42]} Kg6 {[%clk 00:08:57]}
{[%emt 00:01:05]} 33. Ne3 {[%clk 00:14:59]} {[%emt 00:00:06]} Be6 {[%clk
00:09:22]} {[%emt 00:00:05]} 34. d4 {[%clk 00:15:19]} {[%emt 00:00:09]} Kf6
{[%clk 00:08:49]} {[%emt 00:01:04]} 35. c4 {[%clk 00:14:55]} {[%emt 00:00:54]}
a5 {[%clk 00:06:32]} {[%emt 00:02:47]} 36. a4 {[%clk 00:11:43]} {[%emt
00:03:41]} Re8 {[%clk 00:05:10]} {[%emt 00:01:52]} 37. Rxb7 {[%clk 00:10:23]}
{[%emt 00:01:51]} Bc8 {[%clk 00:05:28]} {[%emt 00:00:12]} 38. Rc7 {[%clk
00:10:47]} {[%emt 00:00:06]} Rxe3 {[%clk 00:05:46]} {[%emt 00:00:11]} 39. Rxc8
{[%clk 00:11:12]} {[%emt 00:00:05]} Rxb3 {[%clk 00:06:09]} {[%emt 00:00:08]} 40.
Rxc6 {[%clk 00:10:53]} {[%emt 00:00:48]} Ke7 {[%clk 00:06:31]} {[%emt
00:00:09]} 41. c5 {[%clk 00:07:45]} {[%emt 00:03:38]} 1/2-1/2

[Event "FIDE Grand Swiss 2023"]
[Site "Villa Marina, Douglas, Isle of Man, Isle Of Man"]
[Date "2023.11.01"]
[Round "7.40"]
[White "Kollars, Dmitrij"]
[Black "Sargissian, Gabriel"]
[Result "0-1"]
[TimeControl "40/90 + 30 + 30s/move"]
[WhiteFideId "12909572"]
[BlackFideId "13300881"]
[WhiteElo "2633"]
[BlackElo "2686"]

1. e4 {[%clk 01:40:54]} {[%emt 00:00:04]} e5 {[%clk 01:40:55]} {[%emt
00:00:05]} 2. Nf3 {[%clk 01:41:15]} {[%emt 00:00:10]} Nc6 {[%clk 01:41:20]}
{[%emt 00:00:05]} 3. Bb5 {[%clk 01:41:24]} {[%emt 00:00:22]} a6 {[%clk
01:41:42]} {[%emt 00:00:07]} 4. Ba4 {[%clk 01:41:49]} {[%emt 00:00:05]} Nf6
{[%clk 01:42:05]} {[%emt 00:00:06]} 5. O-O {[%clk 01:41:57]} {[%emt 00:00:23]}
Be7 {[%clk 01:42:17]} {[%emt 00:00:18]} 6. d3 {[%clk 01:41:45]} {[%emt
00:00:43]} b5 {[%clk 01:42:31]} {[%emt 00:00:15]} 7. Bb3 {[%clk 01:42:12]}
{[%emt 00:00:03]} d6 {[%clk 01:42:46]} {[%emt 00:00:16]} 8. a3 {[%clk
01:42:11]} {[%emt 00:00:31]} Na5 {[%clk 01:41:45]} {[%emt 00:01:30]} 9. Ba2
{[%clk 01:42:36]} {[%emt 00:00:06]} c5 {[%clk 01:42:06]} {[%emt 00:00:09]} 10.
Nc3 {[%clk 01:42:15]} {[%emt 00:00:51]} Be6 {[%clk 01:40:15]} {[%emt 00:02:20]}
11. Nh4 {[%clk 01:41:35]} {[%emt 00:01:10]} c4 {[%clk 01:40:15]} {[%emt
00:00:31]} 12. Nf5 {[%clk 01:41:30]} {[%emt 00:00:34]} Bxf5 {[%clk 01:40:33]}
{[%emt 00:00:12]} 13. exf5 {[%clk 01:41:56]} {[%emt 00:00:04]} d5 {[%clk
01:40:38]} {[%emt 00:00:25]} 14. Bg5 {[%clk 01:41:29]} {[%emt 00:00:57]} O-O
{[%clk 01:39:04]} {[%emt 00:02:04]} 15. Qe1 {[%clk 01:41:10]} {[%emt 00:00:49]}
Rc8 {[%clk 01:13:03]} {[%emt 00:26:31]} 16. Bxf6 {[%clk 01:39:58]} {[%emt
00:01:43]} Bxf6 {[%clk 01:12:53]} {[%emt 00:00:40]} 17. Nxd5 {[%clk 01:38:23]}
{[%emt 00:02:05]} Qxd5 {[%clk 01:12:03]} {[%emt 00:01:19]} 18. Qxa5 {[%clk
01:38:47]} {[%emt 00:00:06]} Qc6 {[%clk 01:08:28]} {[%emt 00:04:05]} 19. dxc4
{[%clk 01:12:04]} {[%emt 00:27:13]} bxc4 {[%clk 01:08:25]} {[%emt 00:00:33]} 20.
Qe1 {[%clk 00:55:57]} {[%emt 00:16:37]} e4 {[%clk 01:03:50]} {[%emt 00:05:06]}
21. c3 {[%clk 00:52:25]} {[%emt 00:04:02]} Rcd8 {[%clk 01:01:03]} {[%emt
00:03:16]} 22. Qe2 {[%clk 00:48:15]} {[%emt 00:04:40]} Rd3 {[%clk 01:00:08]}
{[%emt 00:01:25]} 23. Bb1 {[%clk 00:45:09]} {[%emt 00:03:37]} Re8 {[%clk
00:41:57]} {[%emt 00:18:41]} 24. Re1 {[%clk 00:36:53]} {[%emt 00:08:46]} g6
{[%clk 00:41:34]} {[%emt 00:00:53]} 25. Bxd3 {[%clk 00:33:59]} {[%emt
00:03:24]} cxd3 {[%clk 00:41:56]} {[%emt 00:00:08]} 26. Qg4 {[%clk 00:34:20]}
{[%emt 00:00:08]} Qd5 {[%clk 00:35:59]} {[%emt 00:06:27]} 27. Rad1 {[%clk
00:33:25]} {[%emt 00:01:25]} Kg7 {[%clk 00:33:19]} {[%emt 00:03:10]} 28. fxg6
{[%clk 00:31:51]} {[%emt 00:02:05]} hxg6 {[%clk 00:33:26]} {[%emt 00:00:23]} 29.
h4 {[%clk 00:31:55]} {[%emt 00:00:25]} Re6 {[%clk 00:26:57]} {[%emt 00:06:58]}
30. h5 {[%clk 00:25:51]} {[%emt 00:06:35]} Qf5 {[%clk 00:26:57]} {[%emt
00:00:30]} 31. Qxf5 {[%clk 00:21:37]} {[%emt 00:04:45]} gxf5 {[%clk 00:27:20]}
{[%emt 00:00:06]} 32. f3 {[%clk 00:21:54]} {[%emt 00:00:13]} Bh4 {[%clk
00:25:42]} {[%emt 00:02:08]} 33. Re3 {[%clk 00:22:06]} {[%emt 00:00:17]} Bg5
{[%clk 00:20:37]} {[%emt 00:05:36]} 34. Kf2 {[%clk 00:16:48]} {[%emt 00:05:48]}
Bxe3+ {[%clk 00:20:40]} {[%emt 00:00:27]} 35. Kxe3 {[%clk 00:17:15]} {[%emt
00:00:03]} f4+ {[%clk 00:20:37]} {[%emt 00:00:33]} 36. Kd2 {[%clk 00:12:06]}
{[%emt 00:05:39]} f5 {[%clk 00:20:44]} {[%emt 00:00:23]} 37. Re1 {[%clk
00:08:07]} {[%emt 00:04:29]} Kh6 {[%clk 00:20:34]} {[%emt 00:00:40]} 38. c4
{[%clk 00:07:56]} {[%emt 00:00:42]} Kxh5 {[%clk 00:20:36]} {[%emt 00:00:27]} 39.
Rh1+ {[%clk 00:02:55]} {[%emt 00:05:31]} Kg5 {[%clk 00:20:22]} {[%emt
00:00:44]} 40. c5 {[%clk 00:03:07]} {[%emt 00:00:19]} Re5 {[%clk 00:17:24]}
{[%emt 00:03:28]} 41. Re1 {[%clk 00:46:58]} {[%emt 00:06:38]} e3+ {[%clk
00:58:14]} {[%emt 00:09:40]} 42. Kxd3 {[%clk 00:47:16]} {[%emt 00:00:11]} Rxc5
{[%clk 00:58:39]} {[%emt 00:00:06]} 43. b4 {[%clk 00:39:06]} {[%emt 00:08:41]}
Rd5+ {[%clk 00:56:33]} {[%emt 00:02:36]} 44. Kc3 {[%clk 00:39:30]} {[%emt
00:00:06]} Kh4 {[%clk 00:55:25]} {[%emt 00:01:38]} 45. a4 {[%clk 00:33:13]}
{[%emt 00:06:47]} Kg3 {[%clk 00:54:35]} {[%emt 00:01:19]} 46. Re2 {[%clk
00:33:34]} {[%emt 00:00:09]} Kh2 {[%clk 00:54:49]} {[%emt 00:00:16]} 47. Rb2
{[%clk 00:30:57]} {[%emt 00:03:07]} Kg1 {[%clk 00:54:30]} {[%emt 00:00:48]} 48.
Kd4 {[%clk 00:29:46]} {[%emt 00:00:39]} 0-1